Workbook

Sheet Tabelle1
A1: Getränk | D1: Vol-% | E1: Menge [ml] | F1: Alkohol [ml] | G1: Alkohol [g] | H1: Standardgläser
A2: Roederer Cristal | D2: 12 | E2: 150 | F2: =D2*E2/100 -> 18 | G2: =F2*0.8 -> 14.4 | H2: =G2/$E$20 -> 1.44
A3: Montrachet | D3: 13.5 | E3: 150 | F3: =D3*E3/100 -> 20.25 | G3: =F3*0.8 -> 16.2 | H3: =G3/$E$20 -> 1.62
A4: Château Margaux | D4: 13 | E4: 200 | F4: 26 | G4: 20.8 | H4: 2.08
A5: Morey Saint-Denis | D5: 13 | E5: 400 | F5: 52 | G5: 41.6 | H5: 4.16
A6: Grand Bas-Armagnac | D6: 40 | E6: 50 | F6: 20 | G6: 16 | H6: 1.6
E7: Summe | F7: =SUM(F2:F6) -> 136.25 | G7: =SUM(G2:G6) -> 109 | H7: =SUM(H2:H6) -> 10.9
A9: =ROUND(H7,0) -> 11 | B9: Anzahl der getrunkenen Standardgläser (ganzzahlig gerundet)
A10: 120 | B10: Trinkdauer insgesamt [min.]
A11: 20 | B11: Zeitraum zwischen Trink-Ende und Kontrolle der Blutalkoholkonzentration [min.]
A12: 60 | B12: Anflutungszeit eines Standardglases [min.]
A13: 81 | B13: Körpergewicht [kg]
A14: 180 | B14: Körpergröße [cm]
A15: =A13/(A14*0.01)^2 -> 25 | B15: BMI (errechnet)
A16: 25 | B16: BMI bei Normalgewicht (Vorgabe)
A17: =IF(A15<A16,A13,A16*(A14*0.01)^2) -> 81 | B17: Gewicht [kg]
A18: m | B18: Geschlecht | C18: m
C19: w
A20: 1 | B20: Standardglas enthält | E20: 10 | F20: g Alkohol
A22: 0.2 | B22: Resorptionsdefizit (Anteil an der Alkoholmenge, der nicht ins Blut geht)
A23: =E20/A20-E20/A20*A22 -> 8 | B23: Alkoholmenge eines Standardglases, die ins Blut geht [g]
A24: =IF(A18="m",70%,60%) -> 0.7 | B24: Flüssigkeitsanteil am Körpergewicht
A25: 0.15 | B25: Abbau der Blutalkoholkonzentration (BAK) pro Stunde [Promille]
A27: =SUM(E30:E63) -> 0.9516594517 | B27: Blutalkoholkonzentration im Zeitpunkt der Kontrolle [Promille]
A29: GetrunkenesStandard-glas Nr. | B29: Zeitpunkt: Glas ausge- trunken | D29: Alkohol-Abbauzeit [min.] | E29: Beitrag des Standard- glases zur BAK im Zeit- punkt der Kontrolle
A30: =IF($A$9>=1,1,"") -> 1 | B30: =IF(A30<=$A$9,$A$10/$A$9*A30,"") -> 10.90909091 | D30: =IF($A$9>=A30,IF($A$10+$A$11-A30*$A$10/$A$9-$A$12<0,0,$A$10+$A$11-A30*$A$10/$A$9-$A$12),"") -> 69.09090909 | E30: =IF($A$9>=A30,IF($A$23/$A$17/$A$24-$A$25/60*D30<0,0,$A$23/$A$17/$A$24-$A$25/60*D30),"") -> 0
A31: =IF($A$9>=2,2,"") -> 2 | B31: =IF(A31<=$A$9,$A$10/$A$9*A31,"") -> 21.81818182 | D31: 58.18181818 | E31: 0
A32: =IF($A$9>=3,3,"") -> 3 | B32: 32.72727273 | D32: 47.27272727 | E32: 0.02291165624
A33: =IF($A$9>=4,4,"") -> 4 | B33: 43.63636364 | D33: 36.36363636 | E33: 0.05018438352
A34: =IF($A$9>=5,5,"") -> 5 | B34: 54.54545455 | D34: 25.45454545 | E34: 0.07745711079
A35: =IF($A$9>=6,6,"") -> 6 | B35: 65.45454545 | D35: 14.54545455 | E35: 0.1047298381
A36: =IF($A$9>=7,7,"") -> 7 | B36: 76.36363636 | D36: 3.636363636 | E36: 0.1320025653
A37: =IF($A$9>=8,8,"") -> 8 | B37: 87.27272727 | D37: 0 | E37: 0.1410934744
A38: =IF($A$9>=9,9,"") -> 9 | B38: 98.18181818 | D38: 0 | E38: 0.1410934744
A39: =IF($A$9>=10,10,"") -> 10 | B39: 109.0909091 | D39: 0 | E39: 0.1410934744
A40: =IF($A$9>=11,11,"") -> 11 | B40: 120 | D40: 0 | E40: 0.1410934744
A41: =IF($A$9>=12,12,"") -> 
A42: =IF($A$9>=13,13,"") -> 
A43: =IF($A$9>=14,14,"") -> 
A44: =IF($A$9>=15,15,"") -> 
A45: =IF($A$9>=16,16,"") -> 
A46: =IF($A$9>=17,17,"") -> 
A47: =IF($A$9>=18,18,"") -> 
A48: =IF($A$9>=19,19,"") -> 
A49: =IF($A$9>=20,20,"") -> 
A50: =IF($A$9>=21,21,"") -> 
A51: =IF($A$9>=22,22,"") -> 
A52: =IF($A$9>=23,23,"") -> 
A53: =IF($A$9>=24,24,"") -> 
A54: =IF($A$9>=25,25,"") -> 
A55: =IF($A$9>=26,26,"") -> 
A56: =IF($A$9>=27,27,"") -> 
A57: =IF($A$9>=28,28,"") -> 
A58: =IF($A$9>=29,29,"") -> 
A59: =IF($A$9>=30,30,"") -> 
A60: =IF($A$9>=31,31,"") -> 
A61: =IF($A$9>=33,33,"") ->  | B61: =IF(A61<=$A$9,$A$10/$A$9*A61,"") -> 
A62: =IF($A$9>=34,34,"") ->  | B62: =IF(A62<=$A$9,$A$10/$A$9*A62,"") -> 
A63: =IF($A$9>=35,35,"") ->  | B63: =IF(A63<=$A$9,$A$10/$A$9*A63,"") -> 

Sheet Tabelle2

Sheet Tabelle3
